[Event "Titled Tuesday Blitz May 03 Early 2022"]
[White "Itkis, Boris"]
[Black "Arabidze, Meri"]
[WhiteFideId "1209167"]
[BlackFideId "13604040"]
[WhiteElo "2207"]
[BlackElo "2335"]
[Result "1/2-1/2"]
[Round "01"]
[TimeControl "180+1"]
[Date "2022.05.03"]
[WhiteClock "0:01:32"]
[BlackClock "0:00:53"]

1. Nf3 {[%clk 0:03:00]}  f5 {[%clk 0:02:58]} 2. b3 {[%clk 0:03:00]}  Nf6 {[%clk 0:02:58]} 3. Bb2 {[%clk 0:03:01]}  e6 {[%clk 0:02:59]} 4. e3 {[%clk 0:03:02]}  b6 {[%clk 0:02:58]} 5. d4 {[%clk 0:03:02]}  Bb7 {[%clk 0:02:59]} 6. Nbd2 {[%clk 0:03:03]}  Be7 {[%clk 0:02:59]} 7. Bd3 {[%clk 0:03:03]}  O-O {[%clk 0:02:59]} 8. c4 {[%clk 0:03:03]}  Ne4 {[%clk 0:02:56]} 9. O-O {[%clk 0:03:02]}  d6 {[%clk 0:02:52]} 10. Ne1 {[%clk 0:02:57]}  Nd7 {[%clk 0:02:51]} 11. f3 {[%clk 0:02:57]}  Nxd2 {[%clk 0:02:50]} 12. Qxd2 {[%clk 0:02:58]}  e5 {[%clk 0:02:48]} 13. Rc1 {[%clk 0:02:37]}  e4 {[%clk 0:02:41]} 14. fxe4 {[%clk 0:02:26]}  fxe4 {[%clk 0:02:42]} 15. Rxf8+ {[%clk 0:02:25]}  Qxf8 {[%clk 0:02:30]} 16. Be2 {[%clk 0:02:26]}  Bg5 {[%clk 0:02:29]} 17. g3 {[%clk 0:02:12]}  Qf6 {[%clk 0:02:11]} 18. Ng2 {[%clk 0:02:11]}  Rf8 {[%clk 0:02:09]} 19. Rf1 {[%clk 0:02:11]}  Qh6 {[%clk 0:02:09]} 20. Rxf8+ {[%clk 0:02:09]}  Nxf8 {[%clk 0:02:10]} 21. h4 {[%clk 0:02:08]}  Bf6 {[%clk 0:02:07]} 22. d5 {[%clk 0:02:02]}  Bc8 {[%clk 0:01:58]} 23. Qc1 {[%clk 0:01:51]}  Nd7 {[%clk 0:01:47]} 24. Qa1 {[%clk 0:01:50]}  Bxb2 {[%clk 0:01:38]} 25. Qxb2 {[%clk 0:01:51]}  a5 {[%clk 0:01:38]} 26. Qd4 {[%clk 0:01:50]}  Nc5 {[%clk 0:01:37]} 27. a3 {[%clk 0:01:44]}  Qf6 {[%clk 0:01:28]} 28. Qxf6 {[%clk 0:01:38]}  gxf6 {[%clk 0:01:29]} 29. Bd1 {[%clk 0:01:38]}  Nd3 {[%clk 0:01:18]} 30. Nf4 {[%clk 0:01:38]}  Nxf4 {[%clk 0:01:11]} 31. gxf4 {[%clk 0:01:34]}  f5 {[%clk 0:01:06]} 32. Kf2 {[%clk 0:01:32]}  Bd7 {[%clk 0:01:02]} 33. Ke2 {[%clk 0:01:32]}  Kf7 {[%clk 0:00:58]} 34. Kd2 {[%clk 0:01:31]}  h6 {[%clk 0:00:56]} 35. Kc3 {[%clk 0:01:31]}  Ke7 {[%clk 0:00:56]} 36. Kd4 {[%clk 0:01:31]}  Kf6 {[%clk 0:00:54]} 37. h5 {[%clk 0:01:30]}  Ke7 {[%clk 0:00:53]} 38. Be2 {[%clk 0:01:30]}  Kf6 {[%clk 0:00:53]} 39. Bd1 {[%clk 0:01:31]}  Ke7 {[%clk 0:00:53]} 40. Be2 {[%clk 0:01:31]}  Kf6 {[%clk 0:00:53]} 41. Bd1 {[%clk 0:01:32]} 1/2-1/2


[Site "https://www.chess.com"]

[Event "Titled Tuesday Blitz May 03 Early 2022"]
[White "Jakubowski, Krzysztof"]
[Black "Zaksaite, Salomeja"]
[WhiteFideId "1112848"]
[BlackFideId "12801496"]
[WhiteElo "2365"]
[BlackElo "1953"]
[Result "1-0"]
[Round "01"]
[TimeControl "180+1"]
[Date "2022.05.03"]
[WhiteClock "0:00:46"]
[BlackClock "0:00:01"]

1. d4 {[%clk 0:02:51]}  Nf6 {[%clk 0:02:59]} 2. c4 {[%clk 0:02:50]}  g6 {[%clk 0:03:00]} 3. Nc3 {[%clk 0:02:49]}  d5 {[%clk 0:03:00]} 4. Bf4 {[%clk 0:02:47]}  Bg7 {[%clk 0:02:58]} 5. e3 {[%clk 0:02:47]}  c5 {[%clk 0:02:47]} 6. dxc5 {[%clk 0:02:45]}  Qa5 {[%clk 0:02:42]} 7. Qa4+ {[%clk 0:02:40]}  Qxa4 {[%clk 0:02:42]} 8. Nxa4 {[%clk 0:02:41]}  Bd7 {[%clk 0:02:39]} 9. Nc3 {[%clk 0:02:39]}  dxc4 {[%clk 0:02:34]} 10. Bxc4 {[%clk 0:02:37]}  O-O {[%clk 0:02:34]} 11. Rc1 {[%clk 0:02:32]}  Rc8 {[%clk 0:02:34]} 12. b4 {[%clk 0:02:31]}  a5 {[%clk 0:02:33]} 13. b5 {[%clk 0:02:20]}  a4 {[%clk 0:01:54]} 14. Nd5 {[%clk 0:01:47]}  Nxd5 {[%clk 0:00:54]} 15. Bxd5 {[%clk 0:01:46]}  Bxb5 {[%clk 0:00:46]} 16. Bxb7 {[%clk 0:01:41]}  Nc6 {[%clk 0:00:29]} 17. Nf3 {[%clk 0:01:06]}  Nb4 {[%clk 0:00:26]} 18. Nd4 {[%clk 0:00:58]}  Nd3+ {[%clk 0:00:17]} 19. Kd2 {[%clk 0:00:57]}  Bxd4 {[%clk 0:00:16]} 20. exd4 {[%clk 0:00:56]}  Nxf4 {[%clk 0:00:15]} 21. Rb1 {[%clk 0:00:54]}  Bc6 {[%clk 0:00:13]} 22. Bxc8 {[%clk 0:00:52]}  Rxc8 {[%clk 0:00:12]} 23. Rb6 {[%clk 0:00:50]}  Nxg2 {[%clk 0:00:11]} 24. Rhb1 {[%clk 0:00:50]}  Nh4 {[%clk 0:00:10]} 25. Rb8 {[%clk 0:00:49]}  Rxb8 {[%clk 0:00:08]} 26. Rxb8+ {[%clk 0:00:50]}  Kg7 {[%clk 0:00:09]} 27. Rc8 {[%clk 0:00:50]}  Nf3+ {[%clk 0:00:05]} 28. Kc3 {[%clk 0:00:50]}  Bd5 {[%clk 0:00:04]} 29. c6 {[%clk 0:00:49]}  Be6 {[%clk 0:00:02]} 30. Rd8 {[%clk 0:00:46]}  Ng5 {[%clk 0:00:01]} 31. d5 {[%clk 0:00:46]}  Ne4+ {[%clk 0:00:01]} 32. Kd4 {[%clk 0:00:46]} 1-0


[Site "https://www.chess.com"]

[Event "Titled Tuesday Blitz May 03 Early 2022"]
[White "Jaracz, Pawel"]
[Black "Eynullayev, Altay"]
[WhiteFideId "1102222"]
[BlackFideId "13413562"]
[WhiteElo "2429"]
[BlackElo "2079"]
[Result "1-0"]
[Round "01"]
[TimeControl "180+1"]
[Date "2022.05.03"]
[WhiteClock "0:01:22"]
[BlackClock "0:01:14"]

1. d4 {[%clk 0:02:57]}  Nf6 {[%clk 0:02:59]} 2. c4 {[%clk 0:02:57]}  e6 {[%clk 0:02:49]} 3. Nf3 {[%clk 0:02:55]}  b6 {[%clk 0:02:48]} 4. a3 {[%clk 0:02:54]}  Ba6 {[%clk 0:02:47]} 5. Qb3 {[%clk 0:02:49]}  Nc6 {[%clk 0:02:46]} 6. e3 {[%clk 0:02:45]}  Na5 {[%clk 0:02:43]} 7. Qc2 {[%clk 0:02:45]}  d5 {[%clk 0:02:42]} 8. b4 {[%clk 0:02:42]}  Nxc4 {[%clk 0:02:40]} 9. Qa4+ {[%clk 0:02:41]}  b5 {[%clk 0:02:31]} 10. Qxa6 {[%clk 0:02:41]}  Rb8 {[%clk 0:02:31]} 11. Bxc4 {[%clk 0:02:24]}  dxc4 {[%clk 0:02:31]} 12. Ne5 {[%clk 0:02:20]}  Rb6 {[%clk 0:02:27]} 13. Qxa7 {[%clk 0:02:20]}  Bd6 {[%clk 0:02:25]} 14. a4 {[%clk 0:02:12]}  Bxb4+ {[%clk 0:02:05]} 15. Bd2 {[%clk 0:02:12]}  Nd5 {[%clk 0:02:05]} 16. Bxb4 {[%clk 0:02:04]}  Nxb4 {[%clk 0:01:59]} 17. O-O {[%clk 0:02:04]}  f6 {[%clk 0:01:56]} 18. a5 {[%clk 0:01:51]}  Rd6 {[%clk 0:01:19]} 19. Qc5 {[%clk 0:01:47]}  Nc2 {[%clk 0:01:15]} 20. Ra2 {[%clk 0:01:32]}  Rd5 {[%clk 0:01:14]} 21. Qc6+ {[%clk 0:01:30]}  Ke7 {[%clk 0:01:14]} 22. Rxc2 {[%clk 0:01:22]}  fxe5 {[%clk 0:01:14]} 23. Nc3 {[%clk 0:01:22]} 1-0


[Site "https://www.chess.com"]

[Event "Titled Tuesday Blitz May 03 Early 2022"]
[White "Jones, Gawain C B"]
[Black "Saldano Dayer, Horacio"]
[WhiteFideId "409561"]
[BlackFideId "103411"]
[WhiteElo "2823"]
[BlackElo "2476"]
[Result "0-1"]
[Round "01"]
[TimeControl "180+1"]
[Date "2022.05.03"]
[WhiteClock "0:00:43"]
[BlackClock "0:01:27"]

1. c4 {[%clk 0:03:00]}  e6 {[%clk 0:02:58]} 2. g3 {[%clk 0:03:00]}  d5 {[%clk 0:02:56]} 3. Bg2 {[%clk 0:03:00]}  dxc4 {[%clk 0:02:55]} 4. Qb3 {[%clk 0:03:00]}  cxb3 {[%clk 0:02:54]} 5. axb3 {[%clk 0:03:01]}  Nf6 {[%clk 0:02:51]} 6. Nf3 {[%clk 0:02:57]}  Nc6 {[%clk 0:02:48]} 7. Nc3 {[%clk 0:02:54]}  Bc5 {[%clk 0:02:46]} 8. O-O {[%clk 0:02:50]}  O-O {[%clk 0:02:45]} 9. d3 {[%clk 0:02:46]}  e5 {[%clk 0:02:44]} 10. Bg5 {[%clk 0:02:38]}  h6 {[%clk 0:02:43]} 11. Bxf6 {[%clk 0:02:38]}  Qxf6 {[%clk 0:02:44]} 12. Nd2 {[%clk 0:02:37]}  Qd8 {[%clk 0:02:42]} 13. Rfc1 {[%clk 0:02:23]}  Bb4 {[%clk 0:02:40]} 14. Bxc6 {[%clk 0:02:11]}  bxc6 {[%clk 0:02:39]} 15. Nc4 {[%clk 0:02:12]}  Bxc3 {[%clk 0:02:35]} 16. Rxc3 {[%clk 0:02:11]}  f6 {[%clk 0:02:33]} 17. Na5 {[%clk 0:02:08]}  Bd7 {[%clk 0:02:31]} 18. Nb7 {[%clk 0:02:08]}  Qe7 {[%clk 0:02:30]} 19. Nc5 {[%clk 0:02:06]}  Bh3 {[%clk 0:02:28]} 20. Ra4 {[%clk 0:01:54]}  Rfd8 {[%clk 0:02:22]} 21. Rh4 {[%clk 0:01:46]}  Bf5 {[%clk 0:02:21]} 22. Ra4 {[%clk 0:01:41]}  a5 {[%clk 0:02:18]} 23. Nb7 {[%clk 0:01:39]}  Rd4 {[%clk 0:02:15]} 24. Ra1 {[%clk 0:01:30]}  e4 {[%clk 0:02:06]} 25. dxe4 {[%clk 0:01:22]}  Rxe4 {[%clk 0:02:02]} 26. e3 {[%clk 0:01:18]}  Bh3 {[%clk 0:02:02]} 27. Nc5 {[%clk 0:01:13]}  Re5 {[%clk 0:02:00]} 28. Nd3 {[%clk 0:01:12]}  g5 {[%clk 0:01:50]} 29. Rxc6 {[%clk 0:01:04]}  Rd5 {[%clk 0:01:43]} 30. Ne1 {[%clk 0:01:04]}  Rad8 {[%clk 0:01:36]} 31. Rcc1 {[%clk 0:01:01]}  Rd2 {[%clk 0:01:36]} 32. Rxa5 {[%clk 0:00:59]}  Rd1 {[%clk 0:01:31]} 33. Raa1 {[%clk 0:00:58]}  Rxc1 {[%clk 0:01:31]} 34. Rxc1 {[%clk 0:00:59]}  Qe4 {[%clk 0:01:30]} 35. Ra1 {[%clk 0:00:49]}  Rd2 {[%clk 0:01:29]} 36. Rc1 {[%clk 0:00:43]}  Re2 {[%clk 0:01:27]} 0-1


[Site "https://www.chess.com"]

[Event "Titled Tuesday Blitz May 03 Early 2022"]
[White "Karolczuk, Iwo"]
[Black "Chuemsakul, Sarocha"]
[WhiteFideId "21816972"]
[BlackFideId "6203710"]
[WhiteElo "2277"]
[BlackElo "1703"]
[Result "1-0"]
[Round "01"]
[TimeControl "180+1"]
[Date "2022.05.03"]
[WhiteClock "0:00:03"]
[BlackClock "0:00:01"]

1. e4 {[%clk 0:02:55]}  e5 {[%clk 0:02:59]} 2. Nf3 {[%clk 0:02:55]}  Nc6 {[%clk 0:02:59]} 3. Bb5 {[%clk 0:02:47]}  g6 {[%clk 0:02:58]} 4. d4 {[%clk 0:02:43]}  exd4 {[%clk 0:02:49]} 5. Nxd4 {[%clk 0:02:26]}  Bg7 {[%clk 0:02:48]} 6. Nxc6 {[%clk 0:02:25]}  bxc6 {[%clk 0:02:46]} 7. Bc4 {[%clk 0:02:24]}  Ne7 {[%clk 0:02:43]} 8. O-O {[%clk 0:02:23]}  O-O {[%clk 0:02:26]} 9. Nc3 {[%clk 0:02:18]}  Bb7 {[%clk 0:02:19]} 10. Bg5 {[%clk 0:02:07]}  h6 {[%clk 0:02:12]} 11. Bh4 {[%clk 0:02:06]}  g5 {[%clk 0:02:12]} 12. Bg3 {[%clk 0:02:05]}  d5 {[%clk 0:02:11]} 13. Bb3 {[%clk 0:01:33]}  Qd7 {[%clk 0:01:29]} 14. f4 {[%clk 0:01:20]}  f5 {[%clk 0:00:54]} 15. e5 {[%clk 0:00:31]}  c5 {[%clk 0:00:45]} 16. Kh1 {[%clk 0:00:20]}  Kh8 {[%clk 0:00:38]} 17. Re1 {[%clk 0:00:18]}  d4 {[%clk 0:00:27]} 18. fxg5 {[%clk 0:00:05]}  Qc6 {[%clk 0:00:20]} 19. Nd5 {[%clk 0:00:04]}  Nxd5 {[%clk 0:00:16]} 20. gxh6 {[%clk 0:00:04]}  Bxh6 {[%clk 0:00:11]} 21. Qh5 {[%clk 0:00:04]}  Ne3 {[%clk 0:00:08]} 22. Re2 {[%clk 0:00:04]}  Nxg2 {[%clk 0:00:06]} 23. Kg1 {[%clk 0:00:04]}  Kg7 {[%clk 0:00:02]} 24. e6 {[%clk 0:00:03]}  Ne3 {[%clk 0:00:01]} 25. Be5+ {[%clk 0:00:03]} 1-0


[Site "https://www.chess.com"]

[Event "Titled Tuesday Blitz May 03 Early 2022"]
[White "Kotepalli, Sai Nirupama"]
[Black "Vysochin, Spartak"]
[WhiteFideId "5039444"]
[BlackFideId "14103516"]
[WhiteElo "2387"]
[BlackElo "2385"]
[Result "0-1"]
[Round "01"]
[TimeControl "180+1"]
[Date "2022.05.03"]
[WhiteClock "0:00:11"]
[BlackClock "0:00:56"]

1. e4 {[%clk 0:02:53]}  e6 {[%clk 0:02:59]} 2. d3 {[%clk 0:02:53]}  d5 {[%clk 0:02:59]} 3. Nd2 {[%clk 0:02:52]}  c5 {[%clk 0:02:59]} 4. Ngf3 {[%clk 0:02:51]}  Nc6 {[%clk 0:03:00]} 5. g3 {[%clk 0:02:51]}  Nf6 {[%clk 0:03:00]} 6. Bg2 {[%clk 0:02:50]}  Be7 {[%clk 0:03:01]} 7. O-O {[%clk 0:02:50]}  O-O {[%clk 0:03:01]} 8. e5 {[%clk 0:02:49]}  Nd7 {[%clk 0:03:01]} 9. Qe2 {[%clk 0:02:48]}  Qc7 {[%clk 0:03:00]} 10. Re1 {[%clk 0:02:47]}  b5 {[%clk 0:03:00]} 11. Nf1 {[%clk 0:02:44]}  Bb7 {[%clk 0:03:01]} 12. Bf4 {[%clk 0:02:41]}  Rfc8 {[%clk 0:03:00]} 13. h4 {[%clk 0:02:41]}  Qd8 {[%clk 0:02:57]} 14. N1h2 {[%clk 0:02:39]}  a5 {[%clk 0:02:54]} 15. Ng4 {[%clk 0:02:27]}  a4 {[%clk 0:02:44]} 16. a3 {[%clk 0:02:26]}  b4 {[%clk 0:02:41]} 17. Ng5 {[%clk 0:02:10]}  Nd4 {[%clk 0:02:32]} 18. Qd1 {[%clk 0:02:07]}  bxa3 {[%clk 0:02:23]} 19. bxa3 {[%clk 0:02:06]}  Ba6 {[%clk 0:02:15]} 20. c3 {[%clk 0:01:59]}  Nf5 {[%clk 0:02:11]} 21. Qf3 {[%clk 0:01:49]}  h6 {[%clk 0:02:07]} 22. Nh3 {[%clk 0:01:48]}  Rab8 {[%clk 0:02:01]} 23. Ne3 {[%clk 0:01:42]}  Nxe3 {[%clk 0:01:59]} 24. Qxe3 {[%clk 0:01:42]}  d4 {[%clk 0:01:50]} 25. cxd4 {[%clk 0:01:35]}  cxd4 {[%clk 0:01:50]} 26. Qxd4 {[%clk 0:01:33]}  Nc5 {[%clk 0:01:50]} 27. Qxd8+ {[%clk 0:01:31]}  Rxd8 {[%clk 0:01:50]} 28. d4 {[%clk 0:01:23]}  Nb3 {[%clk 0:01:42]} 29. Rad1 {[%clk 0:01:18]}  Nxd4 {[%clk 0:01:34]} 30. Kh2 {[%clk 0:01:07]}  Bxa3 {[%clk 0:01:25]} 31. Ra1 {[%clk 0:00:49]}  Bb4 {[%clk 0:01:24]} 32. Reb1 {[%clk 0:00:48]}  a3 {[%clk 0:01:23]} 33. Rxb4 {[%clk 0:00:43]}  Rxb4 {[%clk 0:01:22]} 34. Rxa3 {[%clk 0:00:44]}  Bb7 {[%clk 0:01:21]} 35. Bxb7 {[%clk 0:00:41]}  Rxb7 {[%clk 0:01:20]} 36. Rd3 {[%clk 0:00:41]}  Rbd7 {[%clk 0:01:19]} 37. Kg2 {[%clk 0:00:40]}  Ne2 {[%clk 0:01:17]} 38. Rb3 {[%clk 0:00:38]}  Rd1 {[%clk 0:01:16]} 39. Be3 {[%clk 0:00:35]}  R8d5 {[%clk 0:01:10]} 40. f4 {[%clk 0:00:31]}  R1d3 {[%clk 0:01:07]} 41. Rb8+ {[%clk 0:00:30]}  Kh7 {[%clk 0:01:06]} 42. Bf2 {[%clk 0:00:28]}  Rd2 {[%clk 0:01:05]} 43. Kf3 {[%clk 0:00:23]}  Nc3 {[%clk 0:01:00]} 44. Be3 {[%clk 0:00:19]}  R5d3 {[%clk 0:00:57]} 45. Nf2 {[%clk 0:00:16]}  Nd5 {[%clk 0:00:57]} 46. Nxd3 {[%clk 0:00:15]}  Rxd3 {[%clk 0:00:57]} 47. Rd8 {[%clk 0:00:13]}  Rxe3+ {[%clk 0:00:56]} 48. Kf2 {[%clk 0:00:11]}  Rd3 {[%clk 0:00:56]} 0-1


[Site "https://www.chess.com"]

[Event "Titled Tuesday Blitz May 03 Early 2022"]
[White "Kozak, Adam"]
[Black "Sztokbant, Bernardo Vainzoff"]
[WhiteFideId "753246"]
[BlackFideId "2115956"]
[WhiteElo "2459"]
[BlackElo "2225"]
[Result "1-0"]
[Round "01"]
[TimeControl "180+1"]
[Date "2022.05.03"]
[WhiteClock "0:01:06"]
[BlackClock "0:00:04"]

1. Nf3 {[%clk 0:02:58]}  d5 {[%clk 0:02:57]} 2. b3 {[%clk 0:02:54]}  Nf6 {[%clk 0:02:56]} 3. Bb2 {[%clk 0:02:54]}  c5 {[%clk 0:02:57]} 4. g3 {[%clk 0:02:50]}  Nc6 {[%clk 0:02:57]} 5. Ne5 {[%clk 0:02:50]}  Qc7 {[%clk 0:02:50]} 6. Nxc6 {[%clk 0:02:50]}  Qxc6 {[%clk 0:02:51]} 7. Bg2 {[%clk 0:02:50]}  g6 {[%clk 0:02:48]} 8. Bxf6 {[%clk 0:02:47]}  Qxf6 {[%clk 0:02:47]} 9. Nc3 {[%clk 0:02:47]}  e6 {[%clk 0:02:33]} 10. Nb5 {[%clk 0:02:35]}  Qe7 {[%clk 0:02:33]} 11. c4 {[%clk 0:02:24]}  a6 {[%clk 0:02:24]} 12. Nc3 {[%clk 0:02:23]}  d4 {[%clk 0:02:25]} 13. Na4 {[%clk 0:02:22]}  Qc7 {[%clk 0:02:10]} 14. O-O {[%clk 0:02:17]}  Bd7 {[%clk 0:02:10]} 15. Rb1 {[%clk 0:02:16]}  Bc6 {[%clk 0:02:01]} 16. d3 {[%clk 0:02:16]}  Be7 {[%clk 0:01:59]} 17. Bf3 {[%clk 0:02:02]}  O-O {[%clk 0:01:58]} 18. Qd2 {[%clk 0:02:01]}  Bxf3 {[%clk 0:01:52]} 19. exf3 {[%clk 0:02:02]}  b5 {[%clk 0:01:52]} 20. Nb2 {[%clk 0:02:00]}  b4 {[%clk 0:01:47]} 21. Na4 {[%clk 0:01:59]}  Qc6 {[%clk 0:01:45]} 22. Qe2 {[%clk 0:01:58]}  Rfe8 {[%clk 0:01:43]} 23. Rbe1 {[%clk 0:01:58]}  Bf8 {[%clk 0:01:44]} 24. h4 {[%clk 0:01:57]}  h5 {[%clk 0:01:42]} 25. Kg2 {[%clk 0:01:57]}  Rac8 {[%clk 0:01:40]} 26. Rh1 {[%clk 0:01:56]}  e5 {[%clk 0:01:39]} 27. Qe4 {[%clk 0:01:52]}  Qc7 {[%clk 0:01:33]} 28. g4 {[%clk 0:01:49]}  hxg4 {[%clk 0:01:25]} 29. fxg4 {[%clk 0:01:50]}  Qc6 {[%clk 0:01:14]} 30. h5 {[%clk 0:01:38]}  Qxe4+ {[%clk 0:01:13]} 31. Rxe4 {[%clk 0:01:39]}  f5 {[%clk 0:01:09]} 32. Re2 {[%clk 0:01:38]}  e4 {[%clk 0:01:04]} 33. hxg6 {[%clk 0:01:37]}  exd3 {[%clk 0:01:00]} 34. Rxe8 {[%clk 0:01:37]}  Rxe8 {[%clk 0:01:00]} 35. gxf5 {[%clk 0:01:37]}  d2 {[%clk 0:00:55]} 36. Rd1 {[%clk 0:01:36]}  Bh6 {[%clk 0:00:55]} 37. Kg3 {[%clk 0:01:15]}  Kg7 {[%clk 0:00:30]} 38. f4 {[%clk 0:01:14]}  Re4 {[%clk 0:00:18]} 39. Rxd2 {[%clk 0:01:13]}  Rxf4 {[%clk 0:00:16]} 40. Rf2 {[%clk 0:01:08]}  Rxf2 {[%clk 0:00:14]} 41. Kxf2 {[%clk 0:01:08]}  Kf6 {[%clk 0:00:11]} 42. Nxc5 {[%clk 0:01:07]}  Kxf5 {[%clk 0:00:10]} 43. Ke2 {[%clk 0:01:07]}  a5 {[%clk 0:00:10]} 44. Kd3 {[%clk 0:01:06]}  Bg7 {[%clk 0:00:05]} 45. Nb7 {[%clk 0:01:06]}  Kxg6 {[%clk 0:00:04]} 46. Nxa5 {[%clk 0:01:06]} 1-0


[Site "https://www.chess.com"]

[Event "Titled Tuesday Blitz May 03 Early 2022"]
[White "Kozak, Antoni"]
[Black "D`Arruda, Ricardo D."]
[WhiteFideId "21832030"]
[BlackFideId "100692"]
[WhiteElo "2236"]
[BlackElo "2383"]
[Result "1-0"]
[Round "01"]
[TimeControl "180+1"]
[Date "2022.05.03"]
[WhiteClock "0:00:16"]
[BlackClock "0:00:30"]

1. Nf3 {[%clk 0:02:57]}  d5 {[%clk 0:02:59]} 2. d4 {[%clk 0:02:54]}  Nf6 {[%clk 0:02:58]} 3. c4 {[%clk 0:02:48]}  c6 {[%clk 0:02:58]} 4. e3 {[%clk 0:02:40]}  g6 {[%clk 0:02:57]} 5. Be2 {[%clk 0:02:33]}  Bg7 {[%clk 0:02:56]} 6. O-O {[%clk 0:02:31]}  O-O {[%clk 0:02:56]} 7. b3 {[%clk 0:02:29]}  Ne4 {[%clk 0:02:52]} 8. Bb2 {[%clk 0:02:28]}  Nd7 {[%clk 0:02:51]} 9. Nc3 {[%clk 0:02:27]}  Nxc3 {[%clk 0:02:49]} 10. Bxc3 {[%clk 0:02:27]}  Nf6 {[%clk 0:02:49]} 11. Bb2 {[%clk 0:02:26]}  b6 {[%clk 0:02:40]} 12. Rc1 {[%clk 0:02:25]}  Bb7 {[%clk 0:02:39]} 13. Ne5 {[%clk 0:02:25]}  Rc8 {[%clk 0:02:38]} 14. Bf3 {[%clk 0:02:10]}  e6 {[%clk 0:02:33]} 15. Ba3 {[%clk 0:02:10]}  Re8 {[%clk 0:02:33]} 16. c5 {[%clk 0:02:08]}  b5 {[%clk 0:02:28]} 17. Be2 {[%clk 0:01:55]}  Nd7 {[%clk 0:02:26]} 18. f4 {[%clk 0:01:53]}  f6 {[%clk 0:02:23]} 19. Nd3 {[%clk 0:01:47]}  e5 {[%clk 0:02:16]} 20. Bb2 {[%clk 0:01:42]}  exf4 {[%clk 0:02:11]} 21. exf4 {[%clk 0:01:41]}  Qe7 {[%clk 0:02:10]} 22. Bf3 {[%clk 0:01:38]}  Qd8 {[%clk 0:01:53]} 23. Qd2 {[%clk 0:01:29]}  Qc7 {[%clk 0:01:51]} 24. Bc3 {[%clk 0:01:25]}  Nf8 {[%clk 0:01:44]} 25. Rce1 {[%clk 0:01:15]}  Qd7 {[%clk 0:01:40]} 26. h3 {[%clk 0:01:13]}  Rxe1 {[%clk 0:01:33]} 27. Rxe1 {[%clk 0:01:13]}  Re8 {[%clk 0:01:32]} 28. Bg4 {[%clk 0:01:12]}  f5 {[%clk 0:01:26]} 29. Bf3 {[%clk 0:01:11]}  Re4 {[%clk 0:01:25]} 30. Bxe4 {[%clk 0:01:07]}  dxe4 {[%clk 0:01:22]} 31. Ne5 {[%clk 0:01:07]}  Qd5 {[%clk 0:01:21]} 32. Kh2 {[%clk 0:00:47]}  Ne6 {[%clk 0:01:21]} 33. Qe3 {[%clk 0:00:45]}  Bc8 {[%clk 0:00:48]} 34. g4 {[%clk 0:00:39]}  fxg4 {[%clk 0:00:41]} 35. hxg4 {[%clk 0:00:39]}  Bh6 {[%clk 0:00:42]} 36. g5 {[%clk 0:00:37]}  Bg7 {[%clk 0:00:41]} 37. Qxe4 {[%clk 0:00:37]}  Nc7 {[%clk 0:00:31]} 38. Nxc6 {[%clk 0:00:32]}  Qxe4 {[%clk 0:00:28]} 39. Rxe4 {[%clk 0:00:32]}  Kf8 {[%clk 0:00:27]} 40. Ba5 {[%clk 0:00:19]}  Bf5 {[%clk 0:00:28]} 41. Re1 {[%clk 0:00:17]}  Nd5 {[%clk 0:00:29]} 42. Kg3 {[%clk 0:00:16]}  Nxf4 {[%clk 0:00:30]} 43. Kxf4 {[%clk 0:00:16]} 1-0


[Site "https://www.chess.com"]

[Event "Titled Tuesday Blitz May 03 Early 2022"]
[White "Krstulovic, Alex"]
[Black "Lauridsen, Jesper Morch"]
[WhiteFideId "760056"]
[BlackFideId "1401890"]
[WhiteElo "2193"]
[BlackElo "2233"]
[Result "1-0"]
[Round "01"]
[TimeControl "180+1"]
[Date "2022.05.03"]
[WhiteClock "0:00:44"]
[BlackClock "0:00:08"]

1. e4 {[%clk 0:02:55]}  e5 {[%clk 0:02:58]} 2. Nf3 {[%clk 0:02:52]}  Nf6 {[%clk 0:02:58]} 3. Nxe5 {[%clk 0:02:52]}  d6 {[%clk 0:02:57]} 4. Nf3 {[%clk 0:02:51]}  Nxe4 {[%clk 0:02:57]} 5. d4 {[%clk 0:02:51]}  d5 {[%clk 0:02:56]} 6. Bd3 {[%clk 0:02:51]}  Bd6 {[%clk 0:02:56]} 7. O-O {[%clk 0:02:48]}  O-O {[%clk 0:02:55]} 8. Re1 {[%clk 0:02:47]}  Bf5 {[%clk 0:02:53]} 9. c4 {[%clk 0:02:47]}  c6 {[%clk 0:02:50]} 10. c5 {[%clk 0:02:44]}  Bc7 {[%clk 0:02:49]} 11. Nc3 {[%clk 0:02:44]}  Nxc3 {[%clk 0:02:41]} 12. bxc3 {[%clk 0:02:42]}  Bxd3 {[%clk 0:02:40]} 13. Qxd3 {[%clk 0:02:43]}  b6 {[%clk 0:02:34]} 14. Ng5 {[%clk 0:02:36]}  g6 {[%clk 0:02:33]} 15. Qh3 {[%clk 0:02:33]}  h5 {[%clk 0:02:32]} 16. g4 {[%clk 0:02:30]}  Qd7 {[%clk 0:02:04]} 17. f3 {[%clk 0:02:28]}  bxc5 {[%clk 0:01:57]} 18. Qh4 {[%clk 0:02:25]}  Na6 {[%clk 0:01:35]} 19. gxh5 {[%clk 0:02:22]}  Rae8 {[%clk 0:01:36]} 20. Ba3 {[%clk 0:02:06]}  Rxe1+ {[%clk 0:01:32]} 21. Rxe1 {[%clk 0:02:06]}  f6 {[%clk 0:00:57]} 22. Ne6 {[%clk 0:02:02]}  g5 {[%clk 0:00:58]} 23. Qg4 {[%clk 0:01:56]}  Re8 {[%clk 0:00:54]} 24. Qf5 {[%clk 0:01:53]}  Qf7 {[%clk 0:00:40]} 25. h6 {[%clk 0:01:33]}  cxd4 {[%clk 0:00:30]} 26. cxd4 {[%clk 0:01:32]}  Be5 {[%clk 0:00:30]} 27. dxe5 {[%clk 0:00:57]}  Rxe6 {[%clk 0:00:27]} 28. Bb2 {[%clk 0:00:53]}  Nc5 {[%clk 0:00:13]} 29. Bd4 {[%clk 0:00:50]}  Nd7 {[%clk 0:00:13]} 30. h7+ {[%clk 0:00:48]}  Kh8 {[%clk 0:00:11]} 31. Kg2 {[%clk 0:00:46]}  Nxe5 {[%clk 0:00:11]} 32. Bxe5 {[%clk 0:00:45]}  Qe7 {[%clk 0:00:08]} 33. Bxf6+ {[%clk 0:00:44]}  Qxf6 {[%clk 0:00:08]} 34. Qxe6 {[%clk 0:00:44]} 1-0


[Site "https://www.chess.com"]